bitfinex/quotes_BTCUSD_20250615
["timestamp","ask_amount","ask_price","bid_price","bid_amount"]
[1749983474821,0.02000987,105200.0,105190.0,0.59878796]
[1749983474982,0.02000987,105200.0,105190.0,0.59881422]
[1749983475566,0.02000987,105200.0,105190.0,0.59881423]
[1749983475985,0.02000987,105200.0,105190.0,0.58101069]
[1749983476189,0.01050489,105200.0,105190.0,0.59881423]
[1749983476402,0.02000987,105200.0,105190.0,0.58101069]
[1749983476608,0.02000987,105200.0,105190.0,0.59881421]
[1749983476849,0.01050489,105200.0,105190.0,0.58101069]
[1749983477047,0.01050489,105200.0,105190.0,0.59881421]
[1749983477679,0.01050489,105200.0,105190.0,0.58101069]
[1749983477926,0.01050489,105200.0,105190.0,0.59881421]
[1749983478359,0.01050489,105200.0,105190.0,0.58101069]
[1749983478567,0.01050489,105200.0,105190.0,0.59881421]
[1749983479195,0.02000996,105200.0,105190.0,0.59881421]
[1749983479402,0.01050489,105200.0,105190.0,0.58101069]
[1749983479616,0.01050489,105200.0,105190.0,0.59881432]
[1749983479823,0.01050489,105200.0,105190.0,0.59881436]
[1749983480676,0.01050489,105200.0,105190.0,0.59881435]
[1749983480863,0.01050489,105200.0,105190.0,0.59881436]
[1749983481068,0.01050489,105200.0,105190.0,0.58101069]
[1749983481278,0.01050489,105200.0,105190.0,0.59881465]
[1749983481698,0.01050489,105200.0,105190.0,0.59881436]
[1749983481914,0.001,105200.0,105190.0,0.58101069]
[1749983482162,0.001,105200.0,105190.0,0.59881436]
[1749983482365,0.01050489,105200.0,105190.0,0.59881436]
[1749983482574,0.001,105200.0,105190.0,0.59881436]
[1749983482779,0.001,105200.0,105190.0,0.59881427]
[1749983483619,0.001,105200.0,105190.0,0.58101069]
[1749983483837,0.001,105200.0,105190.0,0.59881413]
[1749983484268,0.001,105200.0,105190.0,0.58101069]
[1749983484518,0.001,105200.0,105190.0,0.59881419]
[1749983484726,0.001,105200.0,105190.0,0.59881424]
[1749983484931,0.001,105200.0,105190.0,0.59881423]
[1749983485378,0.001,105200.0,105190.0,0.59880564]
[1749983485588,0.001,105200.0,105190.0,0.59880561]
[1749983486005,0.001,105200.0,105190.0,0.59880562]
[1749983486213,0.001,105200.0,105190.0,0.58101069]
[1749983486737,0.001,105200.0,105190.0,0.59880564]
[1749983486951,0.001,105200.0,105190.0,0.58101069]
[1749983487187,0.001,105200.0,105190.0,0.59880523]
[1749983487621,0.001,105200.0,105190.0,0.59880512]
[1749983488056,0.001,105200.0,105190.0,0.58101069]
[1749983488265,0.001,105200.0,105190.0,0.59880451]
[1749983488474,0.001,105200.0,105190.0,0.58101069]
[1749983488680,0.001,105200.0,105190.0,0.59062205]
[1749983488885,0.001,105200.0,105190.0,0.59062182]
[1749983489092,0.001,105200.0,105190.0,0.57282838]
[1749983489486,0.001,105200.0,105190.0,0.59062167]
[1749983489696,0.001,105200.0,105190.0,0.57282838]
[1749983490278,0.001,105200.0,105190.0,0.59062171]
[1749983490486,0.001,105200.0,105190.0,0.57282838]
[1749983491049,0.001,105200.0,105190.0,0.59062169]
[1749983491254,0.001,105200.0,105190.0,0.59062167]
[1749983491467,0.001,105200.0,105190.0,0.59729422]
[1749983491679,0.001,105200.0,105190.0,0.59729426]
[1749983492137,0.001,105200.0,105190.0,0.59062175]
[1749983492348,0.001,105200.0,105190.0,0.57282838]
[1749983492558,0.001,105200.0,105190.0,0.59729426]
[1749983492802,0.001,105200.0,105190.0,0.59062175]
[1749983493014,0.001,105200.0,105190.0,0.59729426]
[1749983493660,0.001,105200.0,105190.0,0.59729385]
[1749983494078,0.001,105200.0,105190.0,0.59729353]
[1749983494287,0.001,105200.0,105190.0,0.59062122]
[1749983494519,0.001,105200.0,105190.0,0.57282838]
[1749983494723,0.001,105200.0,105190.0,0.59729361]
[1749983494938,0.001,105200.0,105190.0,0.59729369]
[1749983495142,0.001,105200.0,105190.0,0.59729385]
[1749983495349,0.001,105200.0,105190.0,0.59729383]
[1749983495559,0.001,105200.0,105190.0,0.59062144]
[1749983495772,0.001,105200.0,105190.0,0.57258838]
[1749983496000,0.001,105200.0,105190.0,0.59705398]
[1749983496195,0.001,105200.0,105190.0,0.59039068]
[1749983496403,0.001,105200.0,105190.0,0.59706665]
[1749983496613,0.001,105200.0,105190.0,0.57926429]
[1749983496816,0.001,105200.0,105190.0,0.57258838]
[1749983497041,0.001,105200.0,105190.0,0.57926405]
[1749983497326,0.001,105200.0,105190.0,0.59039017]
[1749983497533,0.001,105200.0,105190.0,0.57926405]
[1749983497751,0.001,105200.0,105190.0,0.59702582]
[1749983497957,0.001,105200.0,105190.0,0.59035015]
[1749983498175,0.001,105200.0,105190.0,0.59702583]
[1749983498387,0.001,105200.0,105190.0,0.57922404]
[1749983498594,0.001,105200.0,105190.0,0.59035015]
[1749983498806,0.001,105200.0,105190.0,0.59702583]
[1749983499017,0.001,105200.0,105190.0,0.59702582]
[1749983499225,0.001,105200.0,105190.0,0.63495548]
[1749983499435,0.001,105200.0,105190.0,0.6171537]
[1749983499877,0.001,105200.0,105190.0,0.61715372]
[1749983500090,0.001,105200.0,105190.0,0.63495584]
[1749983500303,0.001,105200.0,105190.0,0.61715402]
[1749983500512,0.001,105200.0,105190.0,0.62828121]
[1749983500739,0.001,105200.0,105190.0,0.6282815]
[1749983500951,0.001,105200.0,105190.0,0.63495756]
[1749983501182,0.001,105200.0,105190.0,0.61047804]
[1749983501394,0.001,105200.0,105190.0,0.63495697]
[1749983501599,0.001,105200.0,105190.0,0.61715408]
[1749983501817,0.001,105200.0,105190.0,0.61715402]
[1749983502257,0.001,105200.0,105190.0,0.63495675]
[1749983502485,0.001,105200.0,105190.0,0.62828086]
[1749983502711,0.001,105200.0,105190.0,0.63495691]
[1749983502844,0.001,105200.0,105190.0,0.63495676]
[1749983503067,0.001,105200.0,105190.0,0.61047804]
[1749983503267,0.001,105200.0,105190.0,0.61715468]
[1749983503467,0.001,105200.0,105190.0,0.61715474]
[1749983503675,0.001,105200.0,105190.0,0.63495898]
[1749983504114,0.001,105200.0,105190.0,0.62828226]
[1749983504356,0.001,105200.0,105190.0,0.61715462]
[1749983504616,0.001,105200.0,105190.0,0.61047804]
[1749983504821,0.001,105200.0,105190.0,0.61715465]
[1749983504942,0.001,105200.0,105190.0,0.61047804]
[1749983505176,0.001,105200.0,105190.0,0.61715464]
[1749983505376,0.001,105200.0,105190.0,0.61047804]
[1749983505577,0.001,105200.0,105190.0,0.63495892]
[1749983505807,0.001,105200.0,105190.0,0.61047804]
[1749983506006,0.001,105200.0,105190.0,0.61715465]
[1749983506371,0.001,105200.0,105190.0,0.63495898]
[1749983506571,0.001,105200.0,105190.0,0.62828237]
[1749983506780,0.001,105200.0,105190.0,0.63495263]
[1749983507008,0.001,105200.0,105190.0,0.61715226]
[1749983507817,0.001,105200.0,105190.0,0.6349502]
[1749983508399,0.001,105200.0,105190.0,0.6350302]
[1749983508613,0.001,105200.0,105190.0,0.63503001]
[1749983509049,0.001,105200.0,105190.0,0.63503003]
[1749983509261,0.001,105200.0,105190.0,0.63503011]
[1749983509469,0.001,105200.0,105190.0,0.6350301]
[1749983509687,0.001,105200.0,105190.0,0.62835588]
[1749983509900,0.001,105200.0,105190.0,0.41619804]
[1749983510108,0.001,105200.0,105190.0,0.63499008]
[1749983510317,0.001,105200.0,105190.0,0.61051804]
[1749983510529,0.001,105200.0,105190.0,0.62831589]
[1749983510726,0.001,105200.0,105190.0,0.63499008]
[1749983510935,0.001,105200.0,105190.0,0.61719223]
[1749983511146,0.00067064,105200.0,105190.0,0.61051804]
[1749983511364,0.00067064,105200.0,105190.0,0.70666726]
[1749983511568,0.00067064,105200.0,105190.0,0.71334146]
[1749983511767,0.00067064,105200.0,105190.0,0.73113936]
[1749983512245,0.00067064,105200.0,105190.0,0.72446516]
[1749983512464,0.00067064,105200.0,105190.0,0.73113934]
[1749983512719,0.00067064,105200.0,105190.0,0.73113942]
[1749983512936,0.00067064,105200.0,105190.0,0.72446518]
[1749983513150,0.00067064,105200.0,105190.0,0.7311394]
[1749983513373,0.01017562,105200.0,105190.0,0.73112492]
[1749983513578,0.00067064,105200.0,105190.0,0.73112624]
[1749983513792,0.00067064,105200.0,105190.0,0.68652226]
[1749983514013,0.00067064,105200.0,105190.0,0.6753978]
[1749983514448,0.00067064,105200.0,105190.0,0.67539781]
[1749983514671,0.00067064,105200.0,105190.0,0.59037308]
[1749983514885,0.00067064,105200.0,105190.0,0.57924851]
[1749983515111,0.00067064,105200.0,105190.0,0.63497725]
[1749983515332,0.00067064,105200.0,105190.0,0.63498617]
[1749983515546,0.00067064,105200.0,105190.0,0.59037933]
[1749983515761,0.00067064,105200.0,105190.0,0.59705715]
[1749983515977,0.00067064,105200.0,105190.0,0.63498674]
[1749983516195,0.00067064,105200.0,105190.0,0.63498655]
[1749983516408,0.00067064,105200.0,105190.0,0.59037993]
[1749983516657,0.00067064,105200.0,105190.0,0.57257469]
[1749983516869,0.00067064,105200.0,105190.0,0.59697688]
[1749983517083,0.00067064,105200.0,105190.0,0.59029992]
[1749983517300,0.00067064,105200.0,105190.0,0.39597992]
[1749983517521,0.00067064,105200.0,105190.0,0.59029992]
[1749983517755,0.00067064,105200.0,105190.0,0.63490658]
[1749983517996,0.00067064,105200.0,105190.0,0.62822961]
[1749983518199,0.00067064,105200.0,105190.0,0.63490658]
[1749983518632,0.00067064,105200.0,105190.0,0.59029995]
[1749983518845,0.00067064,105200.0,105190.0,0.59697722]
[1749983519066,0.00067064,105200.0,105190.0,0.3959815]
[1749983519273,0.00067064,105200.0,105190.0,0.59030192]
[1749983519489,0.00067064,105200.0,105190.0,0.59697961]
[1749983519713,0.00067064,105200.0,105190.0,0.63490924]
[1749983519936,0.00067064,105200.0,105190.0,0.59697946]
[1749983520147,0.00031489,105200.0,105190.0,0.59697824]
[1749983520326,0.00031489,105200.0,105190.0,0.579172]
[1749983520585,0.00031489,105200.0,105190.0,0.57249469]
[1749983520796,0.00031489,105200.0,105190.0,0.63491065]
[1749983521006,0.00031489,105200.0,105190.0,0.59698309]
[1749983521213,0.00031489,105200.0,105190.0,0.59698477]
[1749983521424,0.00031489,105200.0,105190.0,0.61710386]
[1749983521639,0.00031489,105200.0,105190.0,0.57249469]
[1749983521857,0.00031489,105200.0,105190.0,0.62823876]
[1749983522037,0.00031489,105200.0,105190.0,0.63491925]
[1749983522251,0.00031489,105200.0,105190.0,0.63491931]
[1749983522471,0.00031489,105200.0,105190.0,0.61042435]
[1749983522691,0.00031489,105200.0,105190.0,0.62823879]
[1749983522931,0.00031489,105200.0,105190.0,0.6349192]
[1749983523149,0.00031489,105200.0,105190.0,0.63491923]
[1749983523366,0.00031489,105200.0,105190.0,0.63491927]
[1749983523593,0.00031489,105200.0,105190.0,0.61042435]
[1749983523825,0.00031489,105200.0,105190.0,0.61710515]
[1749983524037,0.00031489,105200.0,105190.0,0.62823998]
[1749983524255,0.00031489,105200.0,105190.0,0.62823993]
[1749983524471,0.00031489,105200.0,105190.0,0.63492073]
[1749983524688,0.00031489,105200.0,105190.0,0.6349207]
[1749983524907,0.00031489,105200.0,105190.0,0.59699098]
[1749983525116,0.00031489,105200.0,105190.0,0.62823984]
[1749983525329,0.00031489,105200.0,105190.0,0.63492063]
[1749983525549,0.00031489,105200.0,105190.0,0.68254833]
[1749983525759,0.00031489,105200.0,105190.0,0.63492056]
[1749983525973,0.00031489,105200.0,105190.0,0.63492022]
[1749983526203,0.00031489,105200.0,105190.0,0.63491747]
[1749983526418,0.00031489,105200.0,105190.0,0.62823709]
[1749983526666,0.00031489,105200.0,105190.0,0.63491686]
[1749983526884,0.00031489,105200.0,105190.0,0.74560662]
[1749983527100,0.00031489,105200.0,105190.0,0.71711946]
[1749983527322,0.00031489,105200.0,105190.0,0.7740112]
[1749983527558,0.00031489,105200.0,105190.0,0.7740108]
[1749983527776,0.00031489,105200.0,105190.0,0.77401029]
[1749983528052,0.00031489,105200.0,105190.0,0.75620401]
[1749983528270,0.00031489,105200.0,105190.0,0.77401071]
[1749983528406,0.00031489,105200.0,105190.0,0.76733327]
[1749983528641,0.00031489,105200.0,105190.0,0.76733415]
[1749983528836,0.00031489,105200.0,105190.0,0.76733408]
[1749983529045,0.00031489,105200.0,105190.0,0.75620427]
[1749983529244,0.00031489,105200.0,105190.0,0.74952667]
[1749983529652,0.00031489,105200.0,105190.0,0.77401096]
[1749983529858,0.00031489,105200.0,105190.0,0.7562042]
[1749983530115,0.00031489,105200.0,105190.0,0.77620371]
[1749983530307,0.00031489,105200.0,105190.0,0.78733196]
[1749983530528,0.00031489,105200.0,105190.0,0.77620331]
[1749983530723,0.00031489,105200.0,105190.0,0.79400727]
[1749983530942,0.00031489,105200.0,105190.0,0.75607716]
[1749983531081,0.34,105220.0,105210.0,0.24870928]
[1749983531287,0.34,105220.0,105210.0,0.523911]
[1749983531493,0.34,105220.0,105210.0,0.60005965]
[1749983531696,0.34,105220.0,105210.0,0.59338329]
[1749983531904,0.34,105220.0,105210.0,0.60005981]
[1749983532103,0.34,105220.0,105210.0,0.5933834]
[1749983532356,0.34,105220.0,105210.0,0.6000598]
[1749983532499,0.34,105220.0,105210.0,0.59338338]
[1749983532734,0.34,105220.0,105210.0,0.60005953]
[1749983532936,0.34,105220.0,105210.0,0.5933832]
[1749983533173,0.341,105220.0,105210.0,0.60005952]
[1749983533400,0.342,105220.0,105210.0,0.58225599]
[1749983533614,0.342,105220.0,105210.0,0.60005951]
[1749983533828,0.342,105220.0,105210.0,0.63981916]
[1749983534039,0.342,105220.0,105210.0,0.62201588]
[1749983534256,0.342,105220.0,105210.0,0.56367044]
[1749983534676,0.342,105220.0,105210.0,0.55699424]
[1749983534893,0.342,105220.0,105210.0,0.56367044]
[1749983535102,0.342,105220.0,105210.0,0.54586772]
[1749983535320,0.342,105220.0,105210.0,0.55699554]
[1749983535589,0.342,105220.0,105210.0,0.56367235]
[1749983535985,0.342,105220.0,105210.0,0.54586776]
[1749983536192,0.342,105220.0,105210.0,0.55699563]
[1749983536408,0.342,105220.0,105210.0,0.56367235]
[1749983536606,0.342,105220.0,105210.0,0.55699563]
[1749983537036,0.342,105220.0,105210.0,0.55699723]
[1749983537251,0.342,105220.0,105210.0,0.56367455]
[1749983537883,0.342,105220.0,105210.0,0.54189723]
[1749983538099,0.342,105220.0,105210.0,0.54857475]
[1749983538303,0.342,105220.0,105210.0,0.35433535]
[1749983538502,0.342,105220.0,105210.0,0.53353535]
[1749983538706,0.342,105220.0,105210.0,0.5491354]
[1749983538905,0.37051032,105220.0,105210.0,0.49954688]
[1749983539126,0.60159214,105220.0,105210.0,0.5157288]
[1749983539342,0.40201032,105220.0,105210.0,0.32152884]
[1749983539722,0.60159214,105220.0,105210.0,0.53353834]
[1749983540132,0.41151421,105220.0,105210.0,0.54304259]
[1749983540338,0.41151421,105220.0,105210.0,0.54304246]
[1749983540550,0.60159214,105220.0,105210.0,0.51855547]
[1749983540751,0.60159214,105220.0,105210.0,0.53636421]
[1749983540958,0.60159214,105220.0,105210.0,0.52523374]
[1749983541169,0.59208897,105220.0,105210.0,0.32032944]
[1749983541375,0.59208897,105220.0,105210.0,0.49954697]
[1749983541584,0.59208897,105220.0,105210.0,0.52403441]
[1749983541793,0.58258553,105220.0,105210.0,0.3148514]
[1749983542002,0.61114853,105220.0,105210.0,0.55254809]
[1749983542204,0.42107015,105220.0,105210.0,0.55254812]
[1749983542408,0.43057395,105220.0,105210.0,0.34053802]
[1749983542616,0.43057395,105220.0,105210.0,0.54586951]
[1749983542819,0.43057395,105220.0,105210.0,0.55254846]
[1749983543023,0.62065188,105220.0,105210.0,0.33103419]
[1749983543206,0.62065188,105220.0,105210.0,0.53636573]
[1749983543443,0.62065188,105220.0,105210.0,0.54304459]
[1749983543646,0.43057395,105220.0,105210.0,0.55254871]
[1749983543858,0.44007784,105220.0,105210.0,0.51855529]
[1749983544066,0.44007784,105220.0,105210.0,0.54304466]
[1749983544274,0.63015577,105220.0,105210.0,0.29584254]
[1749983544482,0.61114862,105220.0,105210.0,0.30825226]
[1749983544696,0.61114862,105220.0,105210.0,0.50785304]
[1749983544910,0.61056421,105220.0,105210.0,0.16049281]
[1749983545126,0.61056434,105220.0,105210.0,0.29712119]
[1749983545335,0.61056446,105220.0,105210.0,0.31493325]
[1749983545547,0.61056454,105220.0,105210.0,0.31493425]
[1749983545755,0.60164482,105220.0,105210.0,0.3149355]
[1749983545974,0.61056472,105220.0,105210.0,0.1207355]
[1749983546196,0.61056486,105220.0,105210.0,0.31493576]
[1749983546411,0.61056488,105220.0,105210.0,0.29712232]
[1749983546623,0.61056498,105220.0,105210.0,0.3082566]
[1749983546816,0.60164482,105220.0,105210.0,0.29712236]
[1749983547076,0.61056493,105220.0,105210.0,0.30825639]
[1749983547302,0.60164482,105220.0,105210.0,0.31493681]
[1749983547553,0.61056492,105220.0,105210.0,0.30825634]
[1749983547751,0.60164482,105220.0,105210.0,0.31493678]
[1749983547972,0.61056492,105220.0,105210.0,0.29044176]
[1749983548216,0.61055879,105220.0,105210.0,0.31491992]
[1749983548433,0.61055879,105220.0,105210.0,0.29044176]
[1749983548663,0.61055874,105220.0,105210.0,0.4967183]
[1749983548880,0.59214093,105220.0,105210.0,0.30824377]
[1749983549104,0.6010546,105220.0,105210.0,0.30662186]
[1749983549547,0.59214093,105220.0,105210.0,0.30662184]
[1749983549756,0.60105459,105220.0,105210.0,0.32442262]
[1749983549970,0.60105459,105220.0,105210.0,0.32442263]
[1749983550158,0.60105459,105220.0,105210.0,0.30662184]
[1749983550404,0.60105459,105220.0,105210.0,0.31774734]
[1749983550617,0.60105459,105220.0,105210.0,0.31774768]
[1749983550798,0.60105459,105220.0,105210.0,0.12354771]
[1749983551034,0.60105459,105220.0,105210.0,0.32442315]
[1749983551251,0.60105459,105220.0,105210.0,0.32442317]
[1749983551471,0.60105459,105220.0,105210.0,0.31774772]
[1749983551908,0.60105459,105220.0,105210.0,0.52402385]
[1749983552118,0.60105459,105220.0,105210.0,0.1207185]
[1749983552337,0.60105459,105220.0,105210.0,0.29711787]
[1749983552565,0.60105496,105220.0,105210.0,0.29711789]
[1749983552815,0.60105501,105220.0,105210.0,0.29711793]
[1749983553012,0.601055,105220.0,105210.0,0.31492142]
[1749983553249,0.60105501,105220.0,105210.0,0.09624176]
[1749983553458,0.60105508,105220.0,105210.0,0.30824582]
[1749983553670,0.59214093,105220.0,105210.0,0.31492215]
[1749983553876,0.60105508,105220.0,105210.0,0.31492224]
[1749983554090,0.60105508,105220.0,105210.0,0.31492233]
[1749983554319,0.6010551,105220.0,105210.0,0.12072233]
[1749983554577,0.60105505,105220.0,105210.0,0.29711823]
[1749983554795,0.59214093,105220.0,105210.0,0.30824549]
[1749983555015,0.60105502,105220.0,105210.0,0.31492189]
[1749983555205,0.60105502,105220.0,105210.0,0.31492194]
[1749983555206,0.60105508,105220.0,105210.0,0.31492194]
[1749983555447,0.60105508,105220.0,105210.0,0.31492367]
[1749983555657,0.60105508,105220.0,105210.0,0.31492368]
[1749983555873,0.59214093,105220.0,105210.0,0.31492375]
[1749983556059,0.60105505,105220.0,105210.0,0.29711865]
[1749983556214,0.59214093,105220.0,105210.0,0.29712321]
[1749983556423,0.60106118,105220.0,105210.0,0.30825897]
[1749983556628,0.60106118,105220.0,105210.0,0.31494034]
[1749983556838,0.60106118,105220.0,105210.0,0.31494043]
[1749983557059,0.60106118,105220.0,105210.0,0.31494118]
[1749983557245,0.59214093,105220.0,105210.0,0.29044176]
[1749983557442,0.60106113,105220.0,105210.0,0.30825923]
[1749983557644,0.6010611,105220.0,105210.0,0.31494139]
[1749983557895,0.6010611,105220.0,105210.0,0.29044176]
[1749983558113,0.6010611,105220.0,105210.0,0.30826064]
[1749983558114,0.60106113,105220.0,105210.0,0.30826064]
[1749983558343,0.6010611,105220.0,105210.0,0.3149427]
[1749983558540,0.59214093,105220.0,105210.0,0.29712382]
[1749983558713,0.60106108,105220.0,105210.0,0.31494384]
[1749983558916,0.60106108,105220.0,105210.0,0.29712431]
[1749983559120,0.59214093,105220.0,105210.0,0.31494474]
[1749983559328,0.60106108,105220.0,105210.0,0.31494615]
[1749983559530,0.60106108,105220.0,105210.0,0.29712481]
[1749983559734,0.60106108,105220.0,105210.0,0.29994655]
[1749983559934,0.59214093,105220.0,105210.0,0.49954715]
[1749983560136,0.60106101,105220.0,105210.0,0.5062302]
[1749983560338,0.60106101,105220.0,105210.0,0.52405273]
[1749983560573,0.60106092,105220.0,105210.0,0.52405274]
[1749983560789,0.60106091,105220.0,105210.0,0.50623071]
[1749983560992,0.60106093,105220.0,105210.0,0.52405328]
[1749983561202,0.59214093,105220.0,105210.0,0.52405311]
[1749983561413,0.60106094,105220.0,105210.0,0.51454856]
[1749983561620,0.60106096,105220.0,105210.0,0.49004254]
[1749983561824,0.60106098,105220.0,105210.0,0.49672609]
[1749983562025,0.60106101,105220.0,105210.0,0.50786526]
[1749983562437,0.60106101,105220.0,105210.0,0.51736996]
[1749983562643,0.60106097,105220.0,105210.0,0.50623076]
[1749983562853,0.60106097,105220.0,105210.0,0.51736993]
[1749983563054,0.58556098,105220.0,105210.0,0.50905185]
[1749983563404,0.58556096,105220.0,105210.0,0.50905185]
[1749983563609,0.58556092,105220.0,105210.0,0.52687473]
[1749983563809,0.57664093,105220.0,105210.0,0.51573557]
[1749983564010,0.58556082,105220.0,105210.0,0.533559]
[1749983564222,0.58556083,105220.0,105210.0,0.50905185]
[1749983564399,0.58556083,105220.0,105210.0,0.53355924]
[1749983564623,0.58556092,105220.0,105210.0,0.52687531]
[1749983564835,0.57664093,105220.0,105210.0,0.51573546]
[1749983565031,0.58556092,105220.0,105210.0,0.53355849]
[1749983565230,0.57664093,105220.0,105210.0,0.52687496]
[1749983565435,0.57664093,105220.0,105210.0,0.51573546]
[1749983565680,0.57664093,105220.0,105210.0,0.5268748]
[1749983565934,0.57664093,105220.0,105210.0,0.50905185]
[1749983566167,0.57664093,105220.0,105210.0,0.51573542]
[1749983566310,0.58556091,105220.0,105210.0,0.53355835]
[1749983566617,0.57664093,105220.0,105210.0,0.50905185]
[1749983566795,0.58556091,105220.0,105210.0,0.50905185]
[1749983567011,0.5855609,105220.0,105210.0,0.50905185]
[1749983567211,0.5855609,105220.0,105210.0,0.52687476]
[1749983567489,0.60186092,105220.0,105210.0,0.52405375]
[1749983567691,0.60186092,105220.0,105210.0,0.51737002]
[1749983567990,0.60186092,105220.0,105210.0,0.52405354]
[1749983568208,0.60186099,105220.0,105210.0,0.50623106]
[1749983568447,0.60186107,105220.0,105210.0,0.52405465]
[1749983568656,0.601861,105220.0,105210.0,0.52405442]
[1749983568868,0.601861,105220.0,105210.0,0.50623095]
[1749983569105,0.60186088,105220.0,105210.0,0.52405349]
[1749983569310,0.58556088,105220.0,105210.0,0.52405352]
[1749983569736,0.58556095,105220.0,105210.0,0.52405385]
[1749983569965,0.58556095,105220.0,105210.0,0.51737031]
[1749983570169,0.58556095,105220.0,105210.0,0.52405396]
[1749983570371,0.58556095,105220.0,105210.0,0.51737031]
[1749983570372,0.57664093,105220.0,105210.0,0.51737031]
[1749983570577,0.58556047,105220.0,105210.0,0.50623052]
[1749983570792,0.58556062,105220.0,105210.0,0.50623072]
[1749983571018,0.58556062,105220.0,105210.0,0.50623078]
[1749983571232,0.57664093,105220.0,105210.0,0.49954724]
[1749983571442,0.57664093,105220.0,105210.0,0.50623078]
[1749983571649,0.57664093,105220.0,105210.0,0.49004254]
[1749983571861,0.58556061,105220.0,105210.0,0.4967261]
[1749983572066,0.57664093,105220.0,105210.0,0.30663009]
[1749983572288,0.58556061,105220.0,105210.0,0.30663009]
[1749983572493,0.58556061,105220.0,105210.0,0.30663011]
[1749983572699,0.58556062,105220.0,105210.0,0.30663013]
[1749983572902,0.58556042,105220.0,105210.0,0.29994655]
[1749983573315,0.57664093,105220.0,105210.0,0.29994655]
[1749983573526,0.57664093,105220.0,105210.0,0.30662905]
[1749983573824,0.57664093,105220.0,105210.0,0.306628]
[1749983574033,0.56064093,105220.0,105210.0,0.29994655]
[1749983574242,0.56956042,105220.0,105210.0,0.30662743]
[1749983574452,0.56956042,105220.0,105210.0,0.30662738]
[1749983574663,0.56956042,105220.0,105210.0,0.29994655]
[1749983575083,0.56956042,105220.0,105210.0,0.30662729]
[1749983575499,0.56956042,105220.0,105210.0,0.30662725]
[1749983575716,0.56956042,105220.0,105210.0,0.30662726]
[1749983576162,0.56064093,105220.0,105210.0,0.30662725]
[1749983576379,0.56956042,105220.0,105210.0,0.30662725]
[1749983576585,0.56956042,105220.0,105210.0,0.32444217]
[1749983576802,0.56956042,105220.0,105210.0,0.31776086]
[1749983577025,0.56956042,105220.0,105210.0,0.32444051]
[1749983577230,0.56956042,105220.0,105210.0,0.30662657]
[1749983577448,0.56956042,105220.0,105210.0,0.32443996]
[1749983577666,0.56956042,105220.0,105210.0,0.32444]
[1749983577915,0.56064093,105220.0,105210.0,0.30662658]
[1749983578175,0.56956091,105220.0,105210.0,0.31776094]
[1749983578418,0.56956091,105220.0,105210.0,0.30662694]
[1749983578655,0.56064093,105220.0,105210.0,0.50785693]
[1749983578885,0.5695609,105220.0,105210.0,0.50785688]
[1749983579328,0.5695609,105220.0,105210.0,0.50785691]
[1749983579557,0.56956091,105220.0,105210.0,0.5145373]
[1749983579778,0.5695609,105220.0,105210.0,0.49004254]
[1749983580050,0.56064093,105220.0,105210.0,0.32444124]
[1749983580270,0.56064093,105220.0,105210.0,0.31776091]
[1749983580504,0.56064093,105220.0,105210.0,0.29994655]
[1749983580726,0.56956091,105220.0,105210.0,0.32444126]
[1749983580960,0.56956091,105220.0,105210.0,0.30662693]
[1749983581210,0.56956091,105220.0,105210.0,0.29994655]
[1749983581428,0.56956091,105220.0,105210.0,0.29712214]
[1749983581653,0.56064093,105220.0,105210.0,0.31493651]
[1749983581906,0.56064093,105220.0,105210.0,0.29712216]
[1749983582159,0.56956091,105220.0,105210.0,0.29044176]
[1749983582396,0.56956091,105220.0,105210.0,0.31493652]
[1749983582612,0.58586091,105220.0,105210.0,0.29712214]
[1749983582835,0.58586091,105220.0,105210.0,0.3149365]
[1749983583056,0.57694093,105220.0,105210.0,0.29712215]
[1749983583276,0.58586091,105220.0,105210.0,0.29044176]
[1749983583503,0.58586091,105220.0,105210.0,0.31493656]
[1749983583711,0.58586091,105220.0,105210.0,0.30825614]
[1749983583963,0.58586091,105220.0,105210.0,0.29712215]
[1749983584230,0.57694093,105220.0,105210.0,0.3082561]
[1749983584467,0.58586091,105220.0,105210.0,0.29712214]
[1749983584706,0.58586091,105220.0,105210.0,0.31493648]
[1749983584953,0.58586091,105220.0,105210.0,0.29712214]
[1749983585200,0.57694093,105220.0,105210.0,0.31493651]
[1749983585657,0.58586091,105220.0,105210.0,0.29712217]
[1749983585901,0.58586091,105220.0,105210.0,0.29044176]
[1749983586140,0.58586091,105220.0,105210.0,0.29712217]
[1749983586381,0.58586091,105220.0,105210.0,0.31493661]
[1749983586816,0.57694093,105220.0,105210.0,0.29044176]
[1749983587035,0.57694093,105220.0,105210.0,0.31493652]
[1749983587252,0.58586091,105220.0,105210.0,0.31493645]
[1749983587911,0.58586091,105220.0,105210.0,0.31493647]
[1749983588357,0.57694093,105220.0,105210.0,0.29044176]
[1749983588603,0.58586091,105220.0,105210.0,0.31493647]
[1749983589116,0.58586023,105220.0,105210.0,0.0244928]
[1749983589340,0.60096023,105220.0,105210.0,0.21861377]
[1749983589559,0.59204093,105220.0,105210.0,0.02449379]
[1749983589779,0.60096042,105220.0,105210.0,0.21193417]
[1749983590002,0.60096055,105220.0,105210.0,0.21861459]
[1749983590219,0.60096055,105220.0,105210.0,0.02449503]
[1749983590447,0.60096059,105220.0,105210.0,0.21861509]
[1749983590679,0.60096059,105220.0,105210.0,0.2186151]
[1749983590905,0.53960078,105210.0,105200.0,0.0255057]
[1749983591143,0.53960078,105210.0,105200.0,0.34036265]
[1749983591428,0.53960078,105210.0,105200.0,0.13673694]
[1749983591647,0.60026878,105210.0,105200.0,0.29704267]
[1749983591876,0.60523574,105210.0,105200.0,0.31485847]
[1749983592111,0.60523574,105210.0,105200.0,0.12073866]
[1749983592343,0.60523574,105210.0,105200.0,0.31586015]
[1749983592575,0.60523574,105210.0,105200.0,0.11505885]
[1749983592804,0.60523574,105210.0,105200.0,0.1039233]
[1749983593027,0.60523574,105210.0,105200.0,0.31586078]
[1749983593485,0.60523574,105210.0,105200.0,0.29804333]
[1749983593711,0.60523574,105210.0,105200.0,0.31586086]
[1749983593962,0.58913574,105210.0,105200.0,0.31586086]
[1749983594205,0.58913574,105210.0,105200.0,0.31586088]
[1749983594437,0.58913574,105210.0,105200.0,0.30917933]
[1749983594657,0.58913574,105210.0,105200.0,0.29136176]
[1749983594880,0.58913574,105210.0,105200.0,0.31586092]
[1749983595109,0.58913574,105210.0,105200.0,0.30917933]
[1749983595552,0.58913574,105210.0,105200.0,0.31586093]
[1749983595793,0.58913574,105210.0,105200.0,0.31586092]
[1749983596284,0.57313574,105210.0,105200.0,0.31586092]
[1749983596547,0.57313574,105210.0,105200.0,0.29804335]
[1749983596774,0.57313574,105210.0,105200.0,0.30917933]
[1749983597002,0.57313574,105210.0,105200.0,0.31586092]